Cogmind - Beta 14 @@@ ROGUE MODE // 2024.10.31 @ 17:30:38 Player: weedlord420 Result: Destroyed by S-10 Pest with Light Assault Rifle Performance ------------- Evolutions (0) 0 Regions Visited (2) 400 Robots Destroyed (27) 135 Value Destroyed (591) 591 Prototype IDs (0) 0 Alien Tech Used (0) 0 Bonus (0) 0 TOTAL SCORE: 1126 Bonus ------- None Cogmind --------- Core Integrity 0/250 Matter 284/300 Energy 84/100 System Corruption 0% Temperature Cool (0) Movement Rolling (115) Ox1 Location -10/Subcaves Parts ------- > --- POWER (1) -------- (None) > --- PROPULSION (2) --- Improved Aluminum Leg Compact Wheel > --- UTILITY (2) ------ Large Storage Unit Structural Scanner > --- WEAPON (2) ------- Assault Rifle Subdweller Machine Gun > --- INVENTORY (15) --- Subdweller Power Source Subdweller Power Source Subdweller Power Source Subdweller Monowheel Medium Storage Unit Utility Shielding Hacking Suite Small Laser Particle Gun Subdweller Machine Gun Rocket Launcher Subdweller Shrapnel Launcher Multitool Enhanced Flamer Peak State ------------ > --- POWER ------------ Ion Engine > --- PROPULSION ------- Improved Aluminum Leg Improved Aluminum Leg > --- UTILITY ---------- Large Storage Unit Structural Scanner > --- WEAPON ----------- Barrage Gun Enhanced Flamer > --- INVENTORY -------- Light Ion Engine Wheel Compact Wheel Medium Storage Unit Utility Shielding Hacking Suite Small Laser Particle Gun Assault Rifle Assault Rifle Assault Rifle Subdweller Machine Gun Rocket Launcher Subdweller Shrapnel Launcher [Rating: 15] Favorites ----------- Power Ion Engine Engine Ion Engine Propulsion Light Treads Treads Light Treads Leg Improved Aluminum Leg Wheel Compact Wheel Utility Large Storage Unit Device Structural Scanner Storage Large Storage Unit Weapon Assault Rifle Energy Gun EM Pulse Gun Ballistic Gun Assault Rifle Launcher Grenade Launcher Special Weapon Enhanced Flamer Build | -11 -10 -10 ------- Run | Yrd Mat Sub Slots Evolved . | . . . Power . | . . . Propulsion . | . . . Utility . | . . . Weapon . | . . . Parts Attached 30 | 6 10 14 Power 2 | 1 . 1 Engine 2 | 1 . 1 Core . | . . . Reactor . | . . . Propulsion 7 | 2 1 4 Treads 3 | 2 1 . Leg 2 | . . 2 Wheel 2 | . . 2 Hover . | . . . Flight . | . . . Utility 4 | 1 3 . Device 2 | . 2 . Storage 2 | 1 1 . Processor . | . . . Hackware . | . . . Protection . | . . . Artifact . | . . . Weapon 17 | 2 6 9 Energy Gun 4 | 2 1 1 Energy Cannon . | . . . Ballistic Gun 9 | . 3 6 Ballistic Cannon . | . . . Launcher 3 | . 2 1 Special Weapon 1 | . . 1 Impact Weapon . | . . . Slashing Weapon . | . . . Piercing Weapon . | . . . Special Melee Weapon . | . . . Unidentified Prototypes . | . . . Parts Lost 8 | . 1 7 Power 2 | . . 2 Propulsion 4 | . . 4 Utility . | . . . Weapon 2 | . 1 1 Highest Loss Streak 2 | . 1 2 To Critical Strikes . | . . . Average Slot Usage (%) 98 | . 97 98 Engine 13 | . 14 13 Treads 16 | . 27 5 Leg 11 | . . 21 Device 13 | . 12 14 Storage 14 | . 14 14 Energy Gun 3 | . 7 . Ballistic Gun 22 | . 18 26 Peak Build Rating 15 | 6 8 15 Average Rating 9 | 4 7 11 On Entrance 4 | . 6 8 Naked Turns . | . . . Heaviest Build 32 | 13 31 32 Greatest Support 40 | 40 40 40 Greatest Overweight (x) 2 | 2 1 1 Average Overweight (x) . | . . . Largest Inventory Capacity 15 | 8 15 15 Average Capacity 14 | 7 14 15 Most Carried 15 | 6 15 15 Average Carried 11 | 3 9 13 Final Capacity 15 | 8 15 15 Final Carried 14 | 3 12 14 Class Distribution -------------------- 100% | Mutant Dominant Class ---------------- Mutant | -10/Materials Mutant | -10/Subcaves Resources | -11 -10 -10 ----------- Run | Yrd Mat Sub Matter Collected 864 | 256 187 421 Remotely . | . . . Salvage Created 634 | . 282 352 Parts 55 | . 27 28 Haulers Intercepted . | . . . Recyclers Shooed . | . . . Parts Field Recycled . | . . . Retrieved Matter . | . . . Parts Self-Destructed 5 | . . 5 Prevented . | . . . Kills | -11 -10 -10 ------- Run | Yrd Mat Sub Combat Hostiles Destroyed 19 | . 7 12 Guns 12 | . 2 10 AOE 6 | . 5 1 Classes Destroyed 9 | . 8 1 Worker 1 | . 1 . Builder 3 | . 3 . Recycler 1 | . 1 . Mechanic 1 | . 1 . Operator 1 | . 1 . Watcher 1 | . 1 . Swarmer 8 | . 6 2 Grunt 1 | . 1 . Subdweller 10 | . . 10 Best Kill Streak 5 | . 5 2 Combat Bots Only 3 | . 3 2 Max Kills in Single Turn 2 | . 2 1 Gunslinging . | . . . Exploded 2 | . 2 1 Melee . | . . . Uniques/NPCs Destroyed . | . . . Combat | -11 -10 -10 -------- Run | Yrd Mat Sub Hostile Shots Fired 109 | . 35 74 Missed 25 | . 7 18 Damage Taken 1423 | . 383 1040 Core 255 | . 78 177 Absorbed by Shields . | . . . Core Remaining (%) 100 | 100 . . Volleys Fired 82 | . 22 60 Largest 2 | . 2 2 Hottest 108 | . 80 108 Shots Fired 145 | . 43 102 Gun 129 | . 36 93 Cannon . | . . . Launcher 11 | . 7 4 Special 5 | . . 5 Kinetic 101 | . 15 86 Thermal 18 | . 6 12 Explosive 11 | . 7 4 Electromagnetic 15 | . 15 . Robot Hit Streak 11 | . 9 11 Robot Miss Streak 4 | . 4 1 Penetration Max . | . . . Secondary Targets 1 | . . 1 Max Gunslinging Chain 1 | . . 1 Shots Hit Robots 89 | . 23 66 Core Hits 40 | . 18 22 Critical Kills 1 | . 1 . Critical Parts Destroyed . | . . . Critical Strikes 4 | . 2 2 Burn 2 | . . 2 Destroy 1 | . 1 . Corrupt 1 | . 1 . Melee Attacks . | . . . Impact . | . . . Slashing . | . . . Piercing . | . . . Sneak Attacks . | . . . Combat Hostiles . | . . . Follow-up Attacks . | . . . Damage Inflicted 2051 | . 677 1374 Guns 1225 | . 241 984 Cannons . | . . . Explosions 773 | . 436 337 Melee . | . . . Ramming . | . . . Kinetic 1097 | . 113 984 Thermal 199 | . 146 53 Explosive 660 | . 323 337 Electromagnetic 95 | . 95 . Impact . | . . . Slashing . | . . . Piercing . | . . . Highest Corruption . | . . . Average Corruption . | . . . Corruption Purged . | . . . Corruption Blocked . | . . . Overload Shots . | . . . Overflow Damage 7 | . 7 . Projectiles . | . . . Explosions 7 | . 7 . Melee . | . . . Knockbacks . | . . . Impact . | . . . Kinetic . | . . . Secondary . | . . . Self-Inflicted Damage 132 | . 132 . Shots 5 | . 5 . Rammed . | . . . Targets Rammed . | . . . Kicked . | . . . Crushed . | . . . Highest Temperature 54 | . 54 2 Average Temperature 18 | . 19 2 Received Heat Transfer 180 | . 36 144 Siege Activations . | . . . Robots Corrupted . | . . . Combat Hostiles . | . . . Parts Fried . | . . . Impact Corruptions . | . . . Robots Melted 1 | . . 1 Combat Hostiles 1 | . . 1 Parts Melted . | . . . Heat Transferred 895 | . 175 720 Parts Sabotaged . | . . . Parts Stolen . | . . . Parts Stripped . | . . . Power Chain Reactions 2 | . 2 . Alert | -11 -10 -10 ------- Run | Yrd Mat Sub Peak Influence 224 | . 224 . Initial . | . . . Average 48 | . 50 . Maximum Alert Level 1 | . 1 . Low Security (%) 93 | 100 93 . Level 1 6 | . 6 . Level 2 . | . . . Level 3 . | . . . Level 4 . | . . . Level 5 . | . . . High Security . | . . . Max Security . | . . . Squads Dispatched . | . . . Investigation . | . . . Extermination . | . . . Reinforcement . | . . . Assault . | . . . Garrison . | . . . Intercept . | . . . Searches Triggered . | . . . Construction Impeded . | . . . Haulers Reinforced . | . . . Active Scanning Responses . | . . . Cargo Convoy Interrupts . | . . . Stealth | -11 -10 -10 --------- Run | Yrd Mat Sub Distress Signals 1 | . 1 . Communications Jammed . | . . . Distress Signals . | . . . Times Spotted 27 | . 11 16 Peak Tracking Total 6 | . 3 6 Tactical Retreats 1 | . . 1 Traps | -11 -10 -10 ------- Run | Yrd Mat Sub Traps Triggered 2 | . 2 . Indirectly . | . . . Trap Hack Attempts . | . . . Triggered . | . . . Disarmed . | . . . Reprogrammed . | . . . Reused . | . . . Traps Extracted . | . . . Installed . | . . . Triggered . | . . . Machines | -11 -10 -10 ---------- Run | Yrd Mat Sub Machines Disabled 1 | . 1 . Max in Single Turn 1 | . 1 . Machines Repaired . | . . . Machines Dismantled . | . . . Machines Sabotaged . | . . . Overloaded Fab Kills . | . . . Hacking | -11 -10 -10 --------- Run | Yrd Mat Sub Machines Accessed 2 | . 2 . Terminals 2 | . 2 . Fabricators . | . . . Repair Stations . | . . . Recycling Units . | . . . Scanalyzers . | . . . Garrison Access . | . . . Total Hacks 8 | . 8 . Successful 2 | . 2 . Failed 6 | . 6 . Catastrophic . | . . . Database Lockouts . | . . . Manual 8 | . 8 . Terminals 8 | . 8 . Fabricators . | . . . Repair Stations . | . . . Recycling Units . | . . . Scanalyzers . | . . . Garrison Access . | . . . Terminal Hacks . | . . . Fabricator Hacks . | . . . Repair Station Hacks . | . . . Recycling Unit Hacks . | . . . Scanalyzer . | . . . Garrison Access Hacks . | . . . Unauthorized Hacks 2 | . 2 . Terminals 2 | . 2 . Botnet 1 | . 1 . Operators 1 | . 1 . Fabricators . | . . . Repair Stations . | . . . Recycling Units . | . . . Scanalyzers . | . . . Garrison Access . | . . . Data Cores Recovered . | . . . Used . | . . . Hacking Detections 2 | . 2 . Full Trace Events . | . . . Feedback Events . | . . . Feedback Blocked . | . . . Robot Schematics Acquired . | . . . Robots Built . | . . . Authchips . | . . . Time . | . . . Total Robot Build Rating . | . . . Part Schematics Acquired . | . . . Parts Built . | . . . Authchips . | . . . Time . | . . . Total Part Build Rating . | . . . Parts Repaired . | . . . Time . | . . . Parts Recycled . | . . . Recycled Matter . | . . . Retrieved Matter . | . . . Retrieved Components . | . . . Parts Scanalyzed . | . . . Part Schematics Acquired . | . . . Parts Damaged . | . . . Bothacking | -11 -10 -10 ------------ Run | Yrd Mat Sub Used RIF Installer . | . . . Robots Hacked . | . . . Non-combat . | . . . Combat . | . . . Robot Hacks Applied . | . . . Relay Couplers Released . | . . . Fabnet Peak Effective % . | . . . Robots Rewired . | . . . Allies Hacked . | . . . Hacks Repelled . | . . . Allies | -11 -10 -10 -------- Run | Yrd Mat Sub Total Allies . | . . . Largest Group . | . . . Highest-Rated Group . | . . . Highest-Rated Ally . | . . . Total Orders . | . . . Ally Attacks . | . . . Total Damage . | . . . Kills . | . . . Allies Corrupted . | . . . Allies Melted . | . . . Intel | -11 -10 -10 ------- Run | Yrd Mat Sub Robot Analysis Total . | . . . Derelict Logs Recovered 1 | . . 1 Drone Launches . | . . . Drone Recoveries . | . . . Exploration | -11 -10 -10 ------------- Run | Yrd Mat Sub Turns Passed 2770 | 57 1273 1440 Spaces Moved 1174 | 37 455 682 Core 18 | 18 . . Treads 637 | 19 455 163 Legs 497 | . . 497 Wheels 22 | . . 22 Hover . | . . . Flight . | . . . Fastest Speed 50 | 50 160 115 Average Speed 170 | 114 160 180 Slowest Speed 240 | 160 240 240 Overloaded Moves . | . . . Propulsion Burnouts . | . . . Robots Hopped . | . . . Cave-ins Triggered . | . . . Exploration Rate (%) 47 | 3 91 49 Regions Visited 2 Branch Regions 1 Pre-discovered Areas . | . . . Known Exits Taken . | . . . Unknown Exits Taken 2 | 1 1 . Scrap Searched 5 | . . 5 Spaces Dug . | . . . Terrain Destroyed 67 | . 52 15 Melee . | . . . Projectile . | . . . AOE 67 | . 52 15 Terrain Rammed . | . . . Walls Destroyed . | . . . Machines Disabled . | . . . Actions | -11 -10 -10 --------- Run | Yrd Mat Sub Total 1788 | 50 953 785 Wait 467 | 2 449 16 Move 1172 | 36 454 682 Hop . | . . . Pick Up 32 | 6 16 10 Fast Attach 3 | 3 . . Attach 15 | 3 6 6 Detach . | . . . Swap 12 | . 4 8 Drop 5 | . 2 3 Fire 82 | . 22 60 Melee . | . . . Ram . | . . . Kick . | . . . Crush . | . . . Escape Stasis . | . . . Rewire . | . . . Trap . | . . . Miscellaneous . | . . . Route ------- -11/Scrapyard -10/Materials (discovered 5 exits: [*Mat x3] / [*Min] / [*Sub]) -10/Subcaves History --------- Turn | Location | Event 9 | -11/Scrapyard | Discovered new exit (range 16) 58 | -11/Scrapyard | Entered Materials 318 | -10/Materials | Build established: Mutant 622 | -10/Materials | Discovered new exit (range 11) 694 | -10/Materials | Discovered new exit (range 16) 855 | -10/Materials | Discovered new exit (range 12) 895 | -10/Materials | Discovered new exit (range 15) 1034 | -10/Materials | Discovered new exit (range 8) 1331 | -10/Materials | Entered Subcaves 1635 | -10/Subcaves | Core integrity fell below 50% 2313 | -10/Subcaves | Shifting Twisted Machinery released Battle Rifle 2329 | -10/Subcaves | Shifting Twisted Machinery released Mak. Kinetic Plating 2609 | -10/Subcaves | Shifting Twisted Machinery released Multitool 2622 | -10/Subcaves | Shifting Twisted Machinery released Sub. Machine Gun 2656 | -10/Subcaves | Learned Materials security intel 2719 | -10/Subcaves | Core integrity fell below 20% 2771 | -10/Subcaves | Destroyed by S-10 Pest with Light Assault Rifle Last Messages --------------- 02624_ Acquired Multitool. 02640_ Dropped Assault Rifle. 02640_ Acquired Sub. Machine Gun. 02641_ YH-UXC(u) tweaks Twisted Machinery. 02656_ Acquired derelict log, extracted data. Data stored: Materials security intel. 02712_ Imp. Aluminum Leg destroyed. 02722_ DX-XP2(R) destroyed. 02725_ Wheel destroyed. 02727_ NH-S1F(R) affixes Scrap Shield Fragment to Scrap Shield. 02730_ NH-S1F(R) destroyed. 02734_ Acquired 51 matter. 02736_ Acquired Sub. Monowheel. 02737_ Acquired 1 matter. 02741_ Acquired Sub. Power Source. 02757_ Barrage Gun destroyed. 02762_ S-10 Pest destroyed. 02764_ Lgt. Ion Engine destroyed. 02766_ S-10 Pest destroyed. Map ----- +----------------------------------------------------+ | ################## ### ##???????????????? | | #########?######## % ####% ##???????????????? | | ????????????????## ### ##???????????????? | | ????????????????## ###???????????????? | | ???????????????### "##???????????????? | | ???????????????## ###%##% ####??????????????? | | ???????????????########## ####?????????????? | | ???????????????########### !####????????????? | | ???????????????????????#### %&###????????????? | | ????????????????????????###&!% ##????????????? | | ????????????????????????### ![###????????????? | | ????????????????????????### ###????????????? | | ????????????????????????## ##?????????????? | | ????????????????????????## "##?????????????? | | ????????????????????????## ""###?????????????? | | ????????????????????????### "###?????????????? | | ????????????????????????#### ###?????????????? | | ???????????? ? ##???????#### ###?????????????? | | ????????????? ##???????### ##?????????????? | | ???????????? ####### ###?????????????? | | ???????????? ####### ###?????????????? | | ??????????? %##% %##??????????????? | | ???????????? " &% s %###??????????????? | | ?????????????? ###### % =s ###??????????????? | | ??????????????"####### ##%[ ###??????????????? | | ???????????????????## ##@ % ###?????????????? | | ???????????????????## ?"## ##?????????????? | | ??????????????????? ?"# ##?????????????? | | ????????????????? ???? ##?????????????? | | ?????????????????### ??""" ###?????????????? | | ?????????????????### ?? # %#####?????????????? | | ???????????????????????"""#####??????????????? | | ????????????????????????"""##????????????????? | | ????????????????????????" #??????????????????? | | ????????????????????????"##??????????????????? | | ????????????????????????###??????????????????? | | ?????????????????????????????????????????????? | | ?????????????????????????????????????????????? | | ?????????????????????????????????????????????? | | ?????????????????????????????????????????????? | | ?????????????????????????????????????????????? | | ?????????????????????????????????????????????? | | ?????????????????????????????????????????????? | | ?????????????????????????????????????????????? | | ?????????????????????????????????????????????? | | ?????????????????????????????????????????????? | | ?????????????????????????????????????????????? | | ?????????????????????????????????????????????? | | ?????????????????????????????????????????????? | | ?????????????????????????????????????????????? | +----------------------------------------------------+ Best States ------------- Heat Dissipation 25 Energy Generation 10 Energy Capacity 250 Matter Stores 300 Matter Capacity 300 Sight Range 16 Terrain Scan Density 10 Evasion (%) 45 Recoil Reduction 2 Item Schematics ----------------- None Robot Schematics ------------------ None Fabricated ------------ Nothing Alien Tech Used ----------------- None Achievements -------------- None Challenges ------------ None Game ------ Seed CorruptionSalvagingExpander Manual? 0 Play Time 00:13:44 Cumulative 86.4 hours Start 2024.10.31 @ 17:19:35 End 2024.10.31 @ 17:30:38 Sessions 1 Manual Loads 0 Difficulty Rogue Special Mode None Game No. 143 Rogue 142 Adventurer 1 Explorer 0 Win Type - Total 0 Types 0/0/0/0/0/0/0/0/0 Lore% 50 Gallery% 52 Achievement% 44 Wizard Run 0 Options --------- Layout 1 ASCII 0 Keyboard 0 Movement Mouse Keybinds 0 Fullscreen 2 Font 24/Terminus Map View 50x35 Zoom Use 0% Tactical HUD 1 Map Filters NONE Filters NONE Steam 1 RUN: 765874f3-d677-4ce5-bfff-97e48275f430